Cogmind - Beta 16 @@@ ROGUE MODE // 2025.12.26 @ 04:16:38 Player: Yellow Fin Result: Destroyed by CN-MZO(R) with Subdweller Machine Gun Performance ------------- Evolutions (0) 0 Regions Visited (2) 400 Robots Destroyed (32) 160 Value Destroyed (615) 615 Prototype IDs (0) 0 Alien Tech Used (0) 0 Bonus (0) 0 TOTAL SCORE: 1175 Bonus ------- None Cogmind --------- Core Integrity 0/250 Matter 274/300 Energy 60/100 System Corruption 0% Temperature Cool (0) Movement Core (750) Ox14 Location -10/Subcaves Parts ------- > --- POWER (1) -------- (None) > --- PROPULSION (2) --- (None) > --- UTILITY (2) ------ High-capacity Storage Unit Signal Interpreter > --- WEAPON (2) ------- Assault Rifle Assault Rifle > --- INVENTORY (20) --- Light Ion Engine Light Ion Engine Wheel Improved Heat Sink Medium Battery (150) Large Battery (200) Medium Matter Pod (100) Medium Matter Pod (100) Subdweller Optics Sensor Array Targeting Computer Light Armor Plating Scrap Shield Hacking Suite Small Laser Mining Laser Peak State ------------ > --- POWER ------------ Ion Engine > --- PROPULSION ------- Wheel Wheel > --- UTILITY ---------- Improved Heat Sink High-capacity Storage Unit > --- WEAPON ----------- Beam Cannon Beam Cannon > --- INVENTORY -------- Ion Engine Light Ion Engine Light Ion Engine Wheel Wheel Huge Storage Unit Medium Battery Large Battery Medium Matter Pod Medium Matter Pod Sensor Array Signal Interpreter Targeting Computer Light Armor Plating Hacking Suite Small Laser Beam Cannon Assault Rifle Assault Rifle Mining Laser [Rating: 11] Favorites ----------- Power Ion Engine Engine Ion Engine Propulsion Wheel Wheel Wheel Utility High-capacity Storage Unit Device Improved Heat Sink Storage High-capacity Storage Unit Processor Signal Interpreter Weapon Beam Cannon Energy Cannon Beam Cannon Ballistic Gun Assault Rifle Special Weapon Mining Laser Build | -11 -10 -10 ------- Run | Yrd Mat Sub Slots Evolved . | . . . Power . | . . . Propulsion . | . . . Utility . | . . . Weapon . | . . . Parts Attached 22 | 6 15 1 Power 3 | 1 2 . Engine 3 | 1 2 . Core . | . . . Reactor . | . . . Propulsion 6 | 2 4 . Treads . | . . . Leg . | . . . Wheel 6 | 2 4 . Hover . | . . . Flight . | . . . Utility 5 | 1 3 1 Device 2 | . 2 . Storage 2 | 1 1 . Processor 1 | . . 1 Hackware . | . . . Protection . | . . . Artifact . | . . . Weapon 8 | 2 6 . Energy Gun . | . . . Energy Cannon 3 | . 3 . Ballistic Gun 4 | 2 2 . Ballistic Cannon . | . . . Launcher . | . . . Special Weapon 1 | . 1 . Impact Weapon . | . . . Slashing Weapon . | . . . Piercing Weapon . | . . . Special Melee Weapon . | . . . Unidentified Prototypes . | . . . Parts Lost 7 | . 1 6 Power 1 | . . 1 Propulsion 3 | . 1 2 Utility . | . . . Weapon 3 | . . 3 Highest Loss Streak 6 | . 1 6 To Critical Strikes . | . . . Average Backups 12 | 2 13 19 Power 2 | 1 2 2 Propulsion 1 | 1 1 1 Utility 5 | . 5 10 Weapon 3 | . 3 4 Tool/Special . | . . . Unused Backups 21 | 3 3 15 Power 2 | . . 2 Propulsion 3 | 2 . 1 Utility 12 | . 2 10 Weapon 4 | 1 1 2 Tool/Special . | . . . Average Slot Usage (%) 97 | . 97 96 Engine 13 | . 14 13 Wheel 27 | . 27 26 Device 10 | . 12 1 Storage 14 | . 14 14 Processor 2 | . . 12 Energy Cannon 13 | . 12 17 Ballistic Gun 14 | . 15 9 Peak Build Rating 11 | 6 11 11 Average Rating 8 | 5 9 9 On Entrance 5 | . 6 11 Avg Prop Armor Cover (%) . | . . . Naked Turns . | . . . Heaviest Build 52 | 10 52 52 Greatest Support 20 | 20 20 20 Greatest Overweight (x) 5 | . 2 5 Average Overweight (x) 1 | . 1 2 Largest Inventory Capacity 20 | 8 20 20 Average Capacity 17 | 7 18 20 Most Carried 20 | 7 20 20 Average Carried 13 | 2 13 19 Final Capacity 20 | 8 20 20 Final Carried 20 | 6 20 17 Class Distribution -------------------- 60% | Mutant 39% | Scavenger-Mutant Dominant Class ---------------- Scavenger-Mutant | -10/Materials Mutant | -10/Subcaves Resources | -11 -10 -10 ----------- Run | Yrd Mat Sub Matter Collected 873 | 310 523 40 Remotely . | . . . Salvage Created 980 | 177 636 167 Parts 73 | 12 49 12 Haulers Intercepted 2 | . 2 . Recyclers Shooed 2 | . 2 . Parts Field Recycled . | . . . Retrieved Matter . | . . . Parts Self-Destructed 5 | . . 5 Prevented . | . . . Parts Restored . | . . . Kills | -11 -10 -10 ------- Run | Yrd Mat Sub Combat Hostiles Destroyed 19 | . 14 5 Guns 9 | . 9 . Cannons 10 | . 5 5 Classes Destroyed 10 | 2 7 1 Worker 1 | . 1 . Tunneler 5 | 5 . . Hauler 2 | . 2 . Recycler 1 | 1 . . Mechanic 1 | . 1 . Operator 1 | . 1 . Watcher 2 | . 2 . Swarmer 8 | . 6 2 Grunt 8 | . 8 . Subdweller 3 | . . 3 Best Kill Streak 3 | 2 3 3 Combat Bots Only 3 | . 3 3 Max Kills in Single Turn 1 | 1 1 1 Gunslinging . | . . . Exploded . | . . . Melee . | . . . Uniques/NPCs Destroyed . | . . . Combat | -11 -10 -10 -------- Run | Yrd Mat Sub Hostile Shots Fired 102 | . 57 45 Missed 21 | . 9 12 Hits 81 | . 48 33 Projectile 81 | . 48 33 Critical Strikes 3 | . 2 1 Damage Taken 1155 | . 520 635 Core 270 | . 125 145 Absorbed by Shields . | . . . Core Remaining (%) 100 | 100 . . Volleys Fired 102 | 25 63 14 Largest 2 | 2 2 2 Hottest 120 | 40 120 120 Shots Fired 199 | 50 125 24 Gun 140 | 50 88 2 Cannon 58 | . 36 22 Launcher . | . . . Special 1 | . 1 . Kinetic 140 | 50 88 2 Thermal 59 | . 37 22 Explosive . | . . . Electromagnetic . | . . . Robot Hit Streak 12 | 6 12 10 Robot Miss Streak 3 | 3 3 2 Penetration Max . | . . . Secondary Targets 1 | . 1 . Max Gunslinging Chain 1 | . 1 . Shots Hit Robots 132 | 32 83 17 Core Hits 52 | 12 33 7 Critical Kills . | . . . Critical Parts Destroyed 3 | 2 1 . Critical Strikes 3 | 2 1 . Destroy 3 | 2 1 . Melee Attacks . | . . . Impact . | . . . Slashing . | . . . Piercing . | . . . Sneak Attacks . | . . . Combat Hostiles . | . . . Follow-up Attacks . | . . . Damage Inflicted 1611 | 245 1100 266 Guns 960 | 245 715 . Cannons 651 | . 385 266 Explosions . | . . . Melee . | . . . Ramming . | . . . Kinetic 960 | 245 715 . Thermal 651 | . 385 266 Explosive . | . . . Electromagnetic . | . . . Impact . | . . . Slashing . | . . . Piercing . | . . . Highest Corruption . | . . . Average Corruption . | . . . Corruption Purged . | . . . Corruption Blocked . | . . . Overload Shots . | . . . Overflow Damage 16 | . 16 . Projectiles 16 | . 16 . Explosions . | . . . Melee . | . . . Knockbacks . | . . . Impact . | . . . Kinetic . | . . . Secondary . | . . . Self-Inflicted Damage . | . . . Shots . | . . . Rammed . | . . . Targets Rammed . | . . . Kicked . | . . . Crushed . | . . . Highest Temperature 108 | . 108 45 Average Temperature 27 | . 28 20 Received Heat Transfer 327 | . 231 96 Siege Activations . | . . . Martial Activations . | . . . Shielding Activations . | . . . Robots Disrupted . | . . . Combat Hostiles . | . . . Robots Corrupted . | . . . Combat Hostiles . | . . . Parts Fried . | . . . Impact Corruptions . | . . . Robots Melted . | . . . Combat Hostiles . | . . . Parts Melted . | . . . Heat Transferred 1369 | . 814 555 Parts Sabotaged . | . . . Parts Stolen . | . . . Parts Stripped . | . . . Power Chain Reactions . | . . . Alert | -11 -10 -10 ------- Run | Yrd Mat Sub Maximum Alert Level . | . . . Low Security (%) 100 | 100 100 . Level 1 . | . . . Level 2 . | . . . Level 3 . | . . . Level 4 . | . . . Level 5 . | . . . High Security . | . . . Max Security . | . . . Peak Influence 156 | 10 156 . Initial . | . . . Average 49 | 1 57 . Influence Increases 458 | 30 388 40 Destroy 0b10 Robot/C 320 | . 280 40 Destroy 0b10 Robot/NC 65 | 30 35 . Destroy Leader 58 | . 58 . Disable Machine 15 | . 15 . Influence Decreases 458 | 30 325 103 Entered New Map 31 | . . 31 Time Decay 417 | 30 315 72 Lost Part 10 | . 10 . Squads Dispatched 1 | . 1 . Investigation . | . . . Extermination . | . . . Reinforcement 1 | . 1 . Assault . | . . . Garrison . | . . . Intercept . | . . . Searches Triggered . | . . . Construction Impeded . | . . . Haulers Reinforced . | . . . Active Scanning Responses . | . . . Cargo Convoy Interrupts . | . . . Stealth | -11 -10 -10 --------- Run | Yrd Mat Sub Distress Signals . | . . . Communications Jammed . | . . . Distress Signals . | . . . Times Spotted 41 | . 26 15 Peak Tracking Total 9 | . 5 9 Tactical Retreats . | . . . Traps | -11 -10 -10 ------- Run | Yrd Mat Sub Traps Triggered . | . . . Indirectly . | . . . Trap Hack Attempts . | . . . Triggered . | . . . Disarmed . | . . . Reprogrammed . | . . . Reused . | . . . Traps Extracted . | . . . Installed . | . . . Triggered . | . . . Machines | -11 -10 -10 ---------- Run | Yrd Mat Sub Machines Disabled 1 | . 1 . Max in Single Turn 1 | . 1 . Machines Repaired . | . . . Machines Dismantled . | . . . Machines Sabotaged . | . . . Overloaded Fab Kills . | . . . Hacking | -11 -10 -10 --------- Run | Yrd Mat Sub Machines Accessed . | . . . Terminals . | . . . Fabricators . | . . . Repair Stations . | . . . Recycling Units . | . . . Scanalyzers . | . . . Garrison Access . | . . . Total Hacks . | . . . Successful . | . . . Failed . | . . . Catastrophic . | . . . Database Lockouts . | . . . Manual . | . . . Terminals . | . . . Fabricators . | . . . Repair Stations . | . . . Recycling Units . | . . . Scanalyzers . | . . . Garrison Access . | . . . Terminal Hacks . | . . . Fabricator Hacks . | . . . Repair Station Hacks . | . . . Recycling Unit Hacks . | . . . Scanalyzer . | . . . Garrison Access Hacks . | . . . Unauthorized Hacks . | . . . Terminals . | . . . Fabricators . | . . . Repair Stations . | . . . Recycling Units . | . . . Scanalyzers . | . . . Garrison Access . | . . . Data Cores Recovered . | . . . Used . | . . . Hacking Detections . | . . . Full Trace Events . | . . . Feedback Events . | . . . Feedback Blocked . | . . . Robot Schematics Acquired . | . . . Robots Built . | . . . Authchips . | . . . Time . | . . . Total Robot Build Rating . | . . . Part Schematics Acquired . | . . . Parts Built . | . . . Authchips . | . . . Time . | . . . Total Part Build Rating . | . . . Part Studies Acquired . | . . . Parts Repaired . | . . . Time . | . . . Parts Recycled . | . . . Recycled Matter . | . . . Retrieved Matter . | . . . Retrieved Components . | . . . Parts Scanalyzed . | . . . Part Schematics Acquired . | . . . Parts Damaged . | . . . Bothacking | -11 -10 -10 ------------ Run | Yrd Mat Sub Used RIF Installer . | . . . Robots Hacked . | . . . Non-combat . | . . . Combat . | . . . Robot Hacks Applied . | . . . Relay Couplers Released . | . . . Fabnet Peak Effective % . | . . . Robots Rewired . | . . . Allies Hacked . | . . . Hacks Repelled . | . . . Allies | -11 -10 -10 -------- Run | Yrd Mat Sub Total Allies . | . . . Largest Group . | . . . Highest-Rated Group . | . . . Highest-Rated Ally . | . . . Total Orders . | . . . Ally Attacks . | . . . Total Damage . | . . . Kills . | . . . Allies Corrupted . | . . . Allies Melted . | . . . Intel | -11 -10 -10 ------- Run | Yrd Mat Sub Active Infowar (turns) . | . . . Robot Analysis Total . | . . . Derelict Logs Recovered . | . . . Drone Launches . | . . . Drone Recoveries . | . . . Exploration | -11 -10 -10 ------------- Run | Yrd Mat Sub Turns Passed 1283 | 162 907 214 Spaces Moved 811 | 98 563 150 Core 3 | 3 . . Treads . | . . . Legs . | . . . Wheels 808 | 95 563 150 Hover . | . . . Flight . | . . . Fastest Speed 50 | 50 80 110 Average Speed 103 | 79 106 110 Slowest Speed 155 | 80 110 155 Overloaded Moves . | . . . Propulsion Burnouts . | . . . Robots Hopped . | . . . Potential Cave-ins . | . . . Cave-ins Triggered . | . . . Exploration Rate (%) 30 | 4 75 11 Regions Visited 2 Branch Regions 1 Pre-discovered Areas . | . . . Known Exits Taken . | . . . Unknown Exits Taken 2 | 1 1 . Scrap Searched 3 | . . 3 Spaces Dug . | . . . Terrain Destroyed . | . . . Melee . | . . . Projectile . | . . . AOE . | . . . Terrain Rammed . | . . . Walls Destroyed . | . . . Machines Disabled . | . . . Actions | -11 -10 -10 --------- Run | Yrd Mat Sub Total 1068 | 140 751 177 Wait 76 | . 74 2 Move 809 | 97 562 150 Hop . | . . . Pick Up 36 | 9 25 2 Fast Attach 7 | 6 1 . Attach 4 | . 1 3 Detach . | . . . Swap 17 | . 14 3 Drop 17 | 3 11 3 Fire 102 | 25 63 14 Melee . | . . . Ram . | . . . Kick . | . . . Crush . | . . . Escape Stasis . | . . . Rewire . | . . . Trap . | . . . Miscellaneous . | . . . Route ------- -11/Scrapyard -10/Materials (discovered 4 exits: [*Mat x2] / [*Min] / [*Sub]) -10/Subcaves (discovered 1 exit: *Mat) History --------- Turn | Location | Event 24 | -11/Scrapyard | Discovered new exit (range 14) 163 | -11/Scrapyard | Entered Materials 337 | -10/Materials | Build established: Mutant 391 | -10/Materials | Discovered new exit (range 10) 583 | -10/Materials | Discovered new exit (range 14) 820 | -10/Materials | Discovered new exit (range 16) 912 | -10/Materials | Build established: Scavenger-Mutant 922 | -10/Materials | Discovered new exit (range 8) 1070 | -10/Materials | Entered Subcaves 1071 | -10/Subcaves | Approached by a straggling Scientist 1072 | -10/Subcaves | Discovered new exit (range 7) 1099 | -10/Subcaves | Identified exit to Materials 1226 | -10/Subcaves | Ambushed by swarm of Subdwellers 1227 | -10/Subcaves | Ambushed by Subdwellers from Twisted Machinery 1227 | -10/Subcaves | Ambushed by Subdwellers from Twisted Machinery 1227 | -10/Subcaves | Ambushed by Subdwellers from Twisted Machinery 1229 | -10/Subcaves | Ambushed by Subdwellers from Twisted Machinery 1260 | -10/Subcaves | Core integrity fell below 50% 1263 | -10/Subcaves | Lost 4 allies 1273 | -10/Subcaves | Core integrity fell below 20% 1284 | -10/Subcaves | Destroyed by CN-MZO(R) with Subdweller Machine Gun Last Messages --------------- 01227_ SM-KAT(R) angrily emerges from the Twisted Machinery. 01228_ HV Slug penetrates 2F-DH0(R). 01228_ 2F-DH0(R) knocked back. 01229_ D8-SJS(R) emerges from the Twisted Machinery. 01229_ IA-MPK(R) destroyed. 01229_ 2F-3NV(R) angrily emerges from the Twisted Machinery. 01265_ 3B-BDU(R) destroyed. 01267_ Wheel destroyed. 01270_ Beam Cannon destroyed. 01272_ E9-XOF(R) affixes Scrap Shield Fragment to Scrap Shield. 01272_ Wheel destroyed. 01273_ Ion Engine destroyed. 01274_ Beam Cannon destroyed. 01276_ E9-XOF(R) destroyed. 01280_ 2F-3NV(R) destroyed. 01281_ Beam Cannon destroyed. Map ----- +----------------------------------------------------+ | ???????????####?????????????????## ##" # | | ????????????????????????????????# " | | ?????????????????????????????????# # | | ??????????????????????????????????### # | | ?????????????????????????????????##?## # | | ????????????????????????????????## ####### # | | ????????????????????????????????# ###??## ## | | ????????????????????????????????# ##?## ##? | | ????????????????????????????????# ### ## | | ????????????????????????????????# | | ?????????????????????????????????# | | ?????????????????????????????????## ## | | ?????????????????????????????????## ##?#### | | ???????????????????????#????????## #####?????? | | ???????????????????????# ?????### ###?????????? | | ???????????????????????# ###### #???????????? | | ????????????????????##??" # RR ##???????????? | | ???????????????????## ?## ## R= ###????????????? | | ??????????????????## ##" " &%&#??????????????? | | ??????????????????# * #??????????????? | | ???????????????????# ##??????????????? | | ???????????????????## ##???????????????? | | ????????????????????# ### ##????????????????? | | ????????????????????????## ###?????????????????? | | ????????????????????????## ##??????????????????? | | ????????????????????????#@ #??????????????????? | | ????????????????????? %%#???????????????? | | ???????????????????# !&= ??????????? | | ???????????????????# #?????????? | | ???????????????????# ## ##?????????? | | ???????????????????## ?# #??????????? | | ????????????????????#### ? ?????????? | | ???????????????????????# ? ##### ?????????? | | ???????????????????????# ? #????# ??????????? | | ??????????????????????? ? ?????####??????????? | | ??????????????????????? ? ???????????????????? | | ??????????????????????? ? ??????????????????? | | ??????????????????????? ??? ??????????????????? | | ??????????????????????? ???? #?????????????????? | | ??????????????????????? ???? #??????????????????? | | ??????????????????????? ???? ????????????????????? | | ?????????????????????????????????????????????????? | | ?????????????????????????????????????????????????? | | ?????????????????????????????????????????????????? | | ?????????????????????????????????????????????????? | | ?????????????????????????????????????????????????? | | ?????????????????????????????????????????????????? | | ?????????????????????????????????????????????????? | | ?????????????????????????????????????????????????? | | ?????????????????????????????????????????????????? | +----------------------------------------------------+ Best States ------------- Heat Dissipation 39 Energy Generation 10 Energy Capacity 250 Matter Stores 300 Matter Capacity 300 Sight Range 16 Terrain Scan Density 10 Evasion (%) 44 Item Schematics ----------------- None Robot Schematics ------------------ None Fabricated ------------ Nothing Repaired ---------- Nothing Studied --------- None Alien Tech Used ----------------- None Achievements -------------- None Challenges ------------ None Game ------ Seed PowerProcessingSaw Manual? 0 Play Time 00:21:57 Cumulative 65.9 hours Start 2025.12.26 @ 02:49:13 End 2025.12.26 @ 04:16:38 Sessions 2 Manual Loads 0 Difficulty Rogue Special Mode None Game No. 18 Rogue 18 Adventurer 0 Explorer 0 Win Type - Total 2 Types 1/0/1/0/0/0/0/0/0/0 Lore% 11 Gallery% 24 Achievement% 25 Wizard Run 0 Options --------- Layout 1 ASCII 0 Keyboard 0 Movement Mouse Keybinds 0 Fullscreen 1 Font 24/Smallcaps Map View 50x35 Zoom Use 0% Tactical HUD 1 Map Filters NONE Filters NONE Steam 1 RUN: 83dd8fa6-b1b0-448a-b688-082152abff7e